{"text_format":"1","workbook":"xlsx","n_sheets":2,"sheets":["data","moholon"],"not_rendered":{"charts":0,"images":1,"macros":1,"external_links":7,"defined_names":48,"comments":0,"pivot_tables":0},"unopened":[],"bounds":{"document_bytes":16777216,"sheet_cells":100000,"rows_first":2000,"rows_last":500,"rows_between":2000,"halvings":0,"cell_chars":16384,"cell_head_chars":4096},"cells_cut":0,"cells_raw":0,"read":"whole","date_system":"1900"}

{"sheet":"data","index":0,"n_rows":334,"n_cols":20,"rows_kept":334,"cut":false,"hidden":false,"merged":[]}
[1,2,3,4,5,6,7,8,9,10,11,12,13,14,15,16,17,18]
[null,"كود التلميذ","اسم التلميذ","الرقم القومي","تاريخ الميلاد","يوم","شهر","سنة","النوع","رقم الطلب","الصف","مديرية","إدارة","من مدرسة","إلي مدرسة","السنة","التحويل"]
[1,466208655,"سعد1",30906022800225,{"$f":"DATE(IF(MID(D3,1,1)*1=2,(MID(D3,2,2))+1900,MID(D3,2,2)+2000),MID(D3,4,2),MID(D3,6,2))","v":"2009-06-02"},{"$f":"DATEDIF(E3,T3,\"ym\")","v":3},{"$f":"DATEDIF(E3,T3,\"y\")","v":12},{"$f":"DATEDIF(E3,T3,\"y\")","v":12},{"$f":"IF(MOD(MID(D3,13,1),2)=1,\"ذكر\",\"أنثي\")","v":"أنثي"},1013998040,"السادس","القاهرة","شرق مدينة نصر","الشهيد أحمد علي","حسن اسماعيل","2022/2021","من مدرسة",null,null,"2021-10-01"]
[2,466208655,"سعد2",30906022800225,"2009-06-02",3,12,12,"أنثي",1013998043,"السادس","القاهرة","شرق مدينة نصر","الشهيد أحمد علي","حسن اسماعيل","2022/2021","من مدرسة",null,null,"2021-10-01"]
[3,466208655,"سعد3",30906022800225,"2009-06-02",3,12,12,"أنثي",1013998048,"السادس","القاهرة","شرق مدينة نصر","الشهيد أحمد علي","حسن اسماعيل","2022/2021","من مدرسة",null,null,"2021-10-01"]
[4,466208655,"سعد4",30906022800225,"2009-06-02",3,12,12,"أنثي",1013998046,"الخامس","القاهرة","شرق مدينة نصر","الشهيد أحمد علي","حسن اسماعيل","2022/2021","من مدرسة",null,null,"2021-10-01"]
[5,466208655,"سعد5",30906022800225,"2009-06-02",3,12,12,"أنثي",1013998071,"السادس","القاهرة","شرق مدينة نصر","الشهيد أحمد علي","حسن اسماعيل","2022/2021","من مدرسة",null,null,"2021-10-01"]
[6,466208655,"سعد6",30906022800225,"2009-06-02",3,12,12,"أنثي",1013998070,"السادس","القاهرة","شرق مدينة نصر","الشهيد أحمد علي","حسن اسماعيل","2022/2021","من مدرسة",null,null,"2021-10-01"]
[7,466208655,"سعد7",30906022800225,"2009-06-02",3,12,12,"أنثي",1013998039,"السادس","القاهرة","شرق مدينة نصر","الشهيد أحمد علي","حسن اسماعيل","2022/2021","من مدرسة",null,null,"2021-10-01"]
[8,466208655,"سعد8",30906022800225,"2009-06-02",3,12,12,"أنثي",1013998069,"الخامس","القاهرة","شرق مدينة نصر","الشهيد أحمد علي","حسن اسماعيل","2022/2021","من مدرسة",null,null,"2021-10-01"]
[9,466208655,"سعد9",30906022800225,"2009-06-02",3,12,12,"أنثي",1013998030,"الخامس","القاهرة","شرق مدينة نصر","الشهيد أحمد علي","حسن اسماعيل","2022/2021","من مدرسة",null,null,"2021-10-01"]
[10,466208655,"سعد10",30906022800225,"2009-06-02",3,12,12,"أنثي",1013998036,"الخامس","القاهرة","شرق مدينة نصر","الشهيد أحمد علي","حسن اسماعيل","2022/2021","من مدرسة",null,null,"2021-10-01"]
[11,466208655,"سعد11",30906022800225,"2009-06-02",3,12,12,"أنثي",1013998066,"الخامس","القاهرة","شرق مدينة نصر","الشهيد أحمد علي","حسن اسماعيل","2022/2021","من مدرسة",null,null,"2021-10-01"]
[12,466208655,"سعد12",30906022800225,"2009-06-02",3,12,12,"أنثي",1013998037,"الخامس","القاهرة","شرق مدينة نصر","الشهيد أحمد علي","حسن اسماعيل","2022/2021","من مدرسة",null,null,"2021-10-01"]
[13,466208655,"سعد13",30906022800225,"2009-06-02",3,12,12,"أنثي",1013998031,"الخامس","القاهرة","شرق مدينة نصر","الشهيد أحمد علي","حسن اسماعيل","2022/2021","من مدرسة",null,null,"2021-10-01"]
[14,466208655,"سعد14",30906022800225,"2009-06-02",3,12,12,"أنثي",1013998065,"الخامس","القاهرة","شرق مدينة نصر","الشهيد أحمد علي","حسن اسماعيل","2022/2021","من مدرسة",null,null,"2021-10-01"]
[15,466208655,"سعد15",30906022800225,"2009-06-02",3,12,12,"أنثي",1013998062,"الرابع","القاهرة","شرق مدينة نصر","الشهيد أحمد علي","حسن اسماعيل","2022/2021","من مدرسة",null,null,"2021-10-01"]
[16,466208655,"سعد16",30906022800225,"2009-06-02",3,12,12,"أنثي",1013998041,"الخامس","القاهرة","شرق مدينة نصر","الشهيد أحمد علي","حسن اسماعيل","2022/2021","من مدرسة",null,null,"2021-10-01"]
[17,466208655,"سعد17",30906022800225,"2009-06-02",3,12,12,"أنثي",1013998068,"الخامس","القاهرة","شرق مدينة نصر","الشهيد أحمد علي","حسن اسماعيل","2022/2021","من مدرسة",null,null,"2021-10-01"]
[18,466208655,"سعد18",30906022800225,"2009-06-02",3,12,12,"أنثي",1013998067,"الخامس","القاهرة","شرق مدينة نصر","الشهيد أحمد علي","حسن اسماعيل","2022/2021","من مدرسة",null,null,"2021-10-01"]
[19,466208655,"سعد19",30906022800225,"2009-06-02",3,12,12,"أنثي",1013998025,"الثالث","القاهرة","شرق مدينة نصر","الشهيد أحمد علي","حسن اسماعيل","2022/2021","من مدرسة",null,null,"2021-10-01"]
[20,466208655,"سعد20",30906022800225,"2009-06-02",3,12,12,"أنثي",1013998027,"الثاني","القاهرة","شرق مدينة نصر","الشهيد أحمد علي","حسن اسماعيل","2022/2021","من مدرسة",null,null,"2021-10-01"]
[21,466208655,"سعد21",30906022800225,"2009-06-02",3,12,12,"أنثي",1013998023,"الثاني","القاهرة","شرق مدينة نصر","الشهيد أحمد علي","حسن اسماعيل","2022/2021","من مدرسة",null,null,"2021-10-01"]
[22,466208655,"سعد22",30906022800225,"2009-06-02",3,12,12,"أنثي",1013998061,"الرابع","القاهرة","شرق مدينة نصر","الشهيد أحمد علي","حسن اسماعيل","2022/2021","من مدرسة",null,null,"2021-10-01"]
[23,466208655,"سعد23",30906022800225,"2009-06-02",3,12,12,"أنثي",1013998033,"الرابع","القاهرة","شرق مدينة نصر","الشهيد أحمد علي","حسن اسماعيل","2022/2021","من مدرسة",null,null,"2021-10-01"]
[24,466208655,"سعد24",30906022800225,"2009-06-02",3,12,12,"أنثي",1013998026,"الرابع","القاهرة","شرق مدينة نصر","الشهيد أحمد علي","حسن اسماعيل","2022/2021","من مدرسة",null,null,"2021-10-01"]
[25,466208655,"سعد25",30906022800225,"2009-06-02",3,12,12,"أنثي",1013998044,"الرابع","القاهرة","شرق مدينة نصر","الشهيد أحمد علي","حسن اسماعيل","2022/2021","من مدرسة",null,null,"2021-10-01"]
[26,466208655,"سعد26",30906022800225,"2009-06-02",3,12,12,"أنثي",1013998042,"الرابع","القاهرة","شرق مدينة نصر","الشهيد أحمد علي","حسن اسماعيل","2022/2021","من مدرسة",null,null,"2021-10-01"]
[27,466208655,"سعد27",30906022800225,"2009-06-02",3,12,12,"أنثي",1013998064,"الرابع","القاهرة","شرق مدينة نصر","الشهيد أحمد علي","حسن اسماعيل","2022/2021","من مدرسة",null,null,"2021-10-01"]
[28,466208655,"سعد28",30906022800225,"2009-06-02",3,12,12,"أنثي",1013998063,"الرابع","القاهرة","شرق مدينة نصر","الشهيد أحمد علي","حسن اسماعيل","2022/2021","من مدرسة",null,null,"2021-10-01"]
[29,466208655,"سعد29",30906022800225,"2009-06-02",3,12,12,"أنثي",1013998038,"الرابع","القاهرة","شرق مدينة نصر","الشهيد أحمد علي","حسن اسماعيل","2022/2021","من مدرسة",null,null,"2021-10-01"]
[30,466208655,"سعد30",30906022800225,"2009-06-02",3,12,12,"أنثي",1013998028,"الثاني","القاهرة","شرق مدينة نصر","الشهيد أحمد علي","حسن اسماعيل","2022/2021","من مدرسة",null,null,"2021-10-01"]
[31,466208655,"سعد31",30906022800225,"2009-06-02",3,12,12,"أنثي",1013998024,"الثالث","القاهرة","شرق مدينة نصر","الشهيد أحمد علي","حسن اسماعيل","2022/2021","من مدرسة",null,null,"2021-10-01"]
[32,466208655,"سعد32",30906022800225,"2009-06-02",3,12,12,"أنثي",1013998047,"الرابع","القاهرة","شرق مدينة نصر","الشهيد أحمد علي","حسن اسماعيل","2022/2021","من مدرسة",null,null,"2021-10-01"]
[33,466208655,"سعد33",30906022800225,"2009-06-02",3,12,12,"أنثي",1013998056,"الثالث","القاهرة","شرق مدينة نصر","الشهيد أحمد علي","حسن اسماعيل","2022/2021","من مدرسة",null,null,"2021-10-01"]
[34,466208655,"سعد34",30906022800225,"2009-06-02",3,12,12,"أنثي",1013998054,"الثالث","القاهرة","شرق مدينة نصر","الشهيد أحمد علي","حسن اسماعيل","2022/2021","من مدرسة",null,null,"2021-10-01"]
[35,466208655,"سعد35",30906022800225,"2009-06-02",3,12,12,"أنثي",1013998059,"الثالث","القاهرة","شرق مدينة نصر","الشهيد أحمد علي","حسن اسماعيل","2022/2021","من مدرسة",null,null,"2021-10-01"]
[36,466208655,"سعد36",30906022800225,"2009-06-02",3,12,12,"أنثي",1013998029,"الثالث","القاهرة","شرق مدينة نصر","الشهيد أحمد علي","حسن اسماعيل","2022/2021","من مدرسة",null,null,"2021-10-01"]
[37,466208655,"سعد37",30906022800225,"2009-06-02",3,12,12,"أنثي",1013998058,"الثالث","القاهرة","شرق مدينة نصر","الشهيد أحمد علي","حسن اسماعيل","2022/2021","من مدرسة",null,null,"2021-10-01"]
[38,466208655,"سعد38",30906022800225,"2009-06-02",3,12,12,"أنثي",1013998055,"الثالث","القاهرة","شرق مدينة نصر","الشهيد أحمد علي","حسن اسماعيل","2022/2021","من مدرسة",null,null,"2021-10-01"]
[39,466208655,"سعد39",30906022800225,"2009-06-02",3,12,12,"أنثي",1013998032,"الثالث","القاهرة","شرق مدينة نصر","الشهيد أحمد علي","حسن اسماعيل","2022/2021","من مدرسة",null,null,"2021-10-01"]
[40,466208655,"سعد40",30906022800225,"2009-06-02",3,12,12,"أنثي",1013998034,"الثالث","القاهرة","شرق مدينة نصر","الشهيد أحمد علي","حسن اسماعيل","2022/2021","من مدرسة",null,null,"2021-10-01"]
[41,466208655,"سعد41",30906022800225,"2009-06-02",3,12,12,"أنثي",1013998060,"الثالث","القاهرة","شرق مدينة نصر","الشهيد أحمد علي","حسن اسماعيل","2022/2021","من مدرسة",null,null,"2021-10-01"]
[42,466208655,"سعد42",30906022800225,"2009-06-02",3,12,12,"أنثي",1013998045,"الأول","القاهرة","شرق مدينة نصر","الشهيد أحمد علي","حسن اسماعيل","2022/2021","من مدرسة",null,null,"2021-10-01"]
[43,466208655,"سعد43",30906022800225,"2009-06-02",3,12,12,"أنثي",1013998057,"الثالث","القاهرة","شرق مدينة نصر","الشهيد أحمد علي","حسن اسماعيل","2022/2021","من مدرسة",null,null,"2021-10-01"]
[44,466208655,"سعد44",30906022800225,"2009-06-02",3,12,12,"أنثي",1013998035,"الثاني","القاهرة","شرق مدينة نصر","الشهيد أحمد علي","حسن اسماعيل","2022/2021","من مدرسة",null,null,"2021-10-01"]
[45,466208655,"سعد45",30906022800225,"2009-06-02",3,12,12,"أنثي",1013998051,"الثاني","القاهرة","شرق مدينة نصر","الشهيد أحمد علي","حسن اسماعيل","2022/2021","من مدرسة",null,null,"2021-10-01"]
[46,466208655,"سعد46",30906022800225,"2009-06-02",3,12,12,"أنثي",1013998052,"الثاني","القاهرة","شرق مدينة نصر","الشهيد أحمد علي","حسن اسماعيل","2022/2021","من مدرسة",null,null,"2021-10-01"]
[47,466208655,"سعد47",30906022800225,"2009-06-02",3,12,12,"أنثي",1013998053,"الثاني","القاهرة","شرق مدينة نصر","الشهيد أحمد علي","حسن اسماعيل","2022/2021","من مدرسة",null,null,"2021-10-01"]
[48,466208655,"سعد48",30906022800225,"2009-06-02",3,12,12,"أنثي",1013998049,"الأول","القاهرة","شرق مدينة نصر","الشهيد أحمد علي","حسن اسماعيل","2022/2021","من مدرسة",null,null,"2021-10-01"]
[49,466208655,"سعد49",30906022800225,"2009-06-02",3,12,12,"أنثي",1013998050,"الأول","القاهرة","شرق مدينة نصر","الشهيد أحمد علي","حسن اسماعيل","2022/2021","من مدرسة",null,null,"2021-10-01"]
[50,466208655,"سعد50",30906022800225,"2009-06-02",3,12,12,"أنثي",1027264217,"الأول","القاهرة‏","شرق مدينة نصر","حسين علي","الشهيد أحمد علي","2022/2021","إلي مدرسة",null,null,"2021-10-01"]
[51,466208655,"سعد51",30906022800225,"2009-06-02",3,12,12,"أنثي","1024712043 ","الثاني","القاهرة‏","شرق مدينة نصر","حسين علي","الشهيد أحمد علي","2022/2021","إلي مدرسة",null,null,"2021-10-01"]
[52,466208655,"سعد52",30906022800225,"2009-06-02",3,12,12,"أنثي",1027318065,"الثاني","القاهرة‏","شرق مدينة نصر","حسين علي","الشهيد أحمد علي","2022/2021","إلي مدرسة",null,null,"2021-10-01"]
[53,466208655,"سعد53",30906022800225,"2009-06-02",3,12,12,"أنثي",1028490459,"الثاني","القاهرة‏","شرق مدينة نصر","حسين علي","الشهيد أحمد علي","2022/2021","إلي مدرسة",null,null,"2021-10-01"]
[54,466208655,"سعد54",30906022800225,"2009-06-02",3,12,12,"أنثي",21004986087,"الثاني","الجيزة‏","شرق مدينة نصر","حسين علي","الشهيد أحمد علي","2022/2021","إلي مدرسة",null,null,"2021-10-01"]
[55,466208655,"سعد55",30906022800225,"2009-06-02",3,12,12,"أنثي",21016967177,"الثاني","الجيزة‏","شرق مدينة نصر","حسين علي","الشهيد أحمد علي","2022/2021","إلي مدرسة",null,null,"2021-10-01"]
[56,466208655,"سعد56",30906022800225,"2009-06-02",3,12,12,"أنثي",1014075089,"الثاني","القاهرة‏","شرق مدينة نصر","حسين علي","الشهيد أحمد علي","2022/2021","إلي مدرسة",null,null,"2021-10-01"]
[57,466208655,"سعد57",30906022800225,"2009-06-02",3,12,12,"أنثي",1012440010,"الثاني","القاهرة‏","شرق مدينة نصر","حسين علي","الشهيد أحمد علي","2022/2021","إلي مدرسة",null,null,"2021-10-01"]
[58,466208655,"سعد58",30906022800225,"2009-06-02",3,12,12,"أنثي",1012440011,"الثاني","القاهرة‏","شرق مدينة نصر","حسين علي","الشهيد أحمد علي","2022/2021","إلي مدرسة",null,null,"2021-10-01"]
[59,466208655,"سعد59",30906022800225,"2009-06-02",3,12,12,"أنثي"," 1027366139 ","الثالث","القاهرة‏","شرق مدينة نصر","حسين علي","الشهيد أحمد علي","2022/2021","إلي مدرسة",null,null,"2021-10-01"]
[60,466208655,"سعد60",30906022800225,"2009-06-02",3,12,12,"أنثي",1028305074,"الثالث","القاهرة‏","شرق مدينة نصر","حسين علي","الشهيد أحمد علي","2022/2021","إلي مدرسة",null,null,"2021-10-01"]
[61,466208655,"سعد61",30906022800225,"2009-06-02",3,12,12,"أنثي",1027349609,"الثالث","القاهرة‏","شرق مدينة نصر","حسين علي","الشهيد أحمد علي","2022/2021","إلي مدرسة",null,null,"2021-10-01"]
[62,466208655,"سعد62",30906022800225,"2009-06-02",3,12,12,"أنثي",1026024059,"الثالث","القاهرة‏","شرق مدينة نصر","حسين علي","الشهيد أحمد علي","2022/2021","إلي مدرسة",null,null,"2021-10-01"]
[63,466208655,"سعد63",30906022800225,"2009-06-02",3,12,12,"أنثي",1112942046,"الثالث","القاهرة‏","شرق مدينة نصر","حسين علي","الشهيد أحمد علي","2022/2021","إلي مدرسة",null,null,"2021-10-01"]
[64,466208655,"سعد64",30906022800225,"2009-06-02",3,12,12,"أنثي",1112942045,"الثالث","القاهرة‏","شرق مدينة نصر","حسين علي","الشهيد أحمد علي","2022/2021","إلي مدرسة",null,null,"2021-10-01"]
[65,466208655,"سعد65",30906022800225,{"$f":"DATE(IF(MID(D67,1,1)*1=2,(MID(D67,2,2))+1900,MID(D67,2,2)+2000),MID(D67,4,2),MID(D67,6,2))","v":"2009-06-02"},{"$f":"DATEDIF(E67,T67,\"ym\")","v":3},{"$f":"DATEDIF(E67,T67,\"y\")","v":12},{"$f":"DATEDIF(E67,T67,\"y\")","v":12},{"$f":"IF(MOD(MID(D67,13,1),2)=1,\"ذكر\",\"أنثي\")","v":"أنثي"},1027229067,"الثالث","القاهرة‏","شرق مدينة نصر","حسين علي","الشهيد أحمد علي","2022/2021","إلي مدرسة",null,null,"2021-10-01"]
[66,466208655,"سعد66",30906022800225,"2009-06-02",3,12,12,"أنثي",1027366135,"الثالث","القاهرة‏","شرق مدينة نصر","حسين علي","الشهيد أحمد علي","2022/2021","إلي مدرسة",null,null,"2021-10-01"]
[67,466208655,"سعد67",30906022800225,"2009-06-02",3,12,12,"أنثي",1014115270,"الثالث","القاهرة‏","شرق مدينة نصر","حسين علي","الشهيد أحمد علي","2022/2021","إلي مدرسة",null,null,"2021-10-01"]
[68,466208655,"سعد68",30906022800225,"2009-06-02",3,12,12,"أنثي",21010444040,"الثالث","الجيزة‏","شرق مدينة نصر","حسين علي","الشهيد أحمد علي","2022/2021","إلي مدرسة",null,null,"2021-10-01"]
[69,466208655,"سعد69",30906022800225,"2009-06-02",3,12,12,"أنثي",21098516162,"الثالث","الجيزة‏","شرق مدينة نصر","حسين علي","الشهيد أحمد علي","2022/2021","إلي مدرسة",null,null,"2021-10-01"]
[70,466208655,"سعد70",30906022800225,"2009-06-02",3,12,12,"أنثي","1027370067 ","الرابع","القاهرة‏","شرق مدينة نصر","حسين علي","الشهيد أحمد علي","2022/2021","إلي مدرسة",null,null,"2021-10-01"]
[71,466208655,"سعد71",30906022800225,"2009-06-02",3,12,12,"أنثي",1027349608,"الرابع","القاهرة‏","شرق مدينة نصر","حسين علي","الشهيد أحمد علي","2022/2021","إلي مدرسة",null,null,"2021-10-01"]
[72,466208655,"سعد72",30906022800225,"2009-06-02",3,12,12,"أنثي",31002085002,"الرابع","البحر الاحمر‏","شرق مدينة نصر","حسين علي","الشهيد أحمد علي","2022/2021","إلي مدرسة",null,null,"2021-10-01"]
[73,466208655,"سعد73",30906022800225,"2009-06-02",3,12,12,"أنثي",21004986088,"الرابع","الجيزة‏","شرق مدينة نصر","حسين علي","الشهيد أحمد علي","2022/2021","إلي مدرسة",null,null,"2021-10-01"]
[74,466208655,"سعد74",30906022800225,"2009-06-02",3,12,12,"أنثي",1024712044,"الرابع","القاهرة‏","شرق مدينة نصر","حسين علي","الشهيد أحمد علي","2022/2021","إلي مدرسة",null,null,"2021-10-01"]
[75,466208655,"سعد75",30906022800225,"2009-06-02",3,12,12,"أنثي",1030231115,"الرابع","القاهرة‏","شرق مدينة نصر","حسين علي","الشهيد أحمد علي","2022/2021","إلي مدرسة",null,null,"2021-10-01"]
[76,466208655,"سعد76",30906022800225,"2009-06-02",3,12,12,"أنثي",24005717022,"الرابع","المنيا‏","شرق مدينة نصر","حسين علي","الشهيد أحمد علي","2022/2021","إلي مدرسة",null,null,"2021-10-01"]
[77,466208655,"سعد77",30906022800225,"2009-06-02",3,12,12,"أنثي",21093555086,"الرابع","الجيزة‏","شرق مدينة نصر","حسين علي","الشهيد أحمد علي","2022/2021","إلي مدرسة",null,null,"2021-10-01"]
[78,466208655,"سعد78",30906022800225,"2009-06-02",3,12,12,"أنثي",1028248034,"الرابع","القاهرة‏","شرق مدينة نصر","حسين علي","الشهيد أحمد علي","2022/2021","إلي مدرسة",null,null,"2021-10-01"]
[79,466208655,"سعد79",30906022800225,"2009-06-02",3,12,12,"أنثي",1030200160,"الرابع","القاهرة","شرق مدينة نصر","حسين علي","الشهيد أحمد علي","2022/2021","إلي مدرسة",null,null,"2021-10-01"]
[80,466208655,"سعد80",30906022800225,"2009-06-02",3,12,12,"أنثي","1014115271 ","الخامس","القاهرة‏","شرق مدينة نصر","حسين علي","الشهيد أحمد علي","2022/2021","إلي مدرسة",null,null,"2021-10-01"]
[81,466208655,"سعد81",30906022800225,"2009-06-02",3,12,12,"أنثي",21003835426,"الخامس","الجيزة‏","شرق مدينة نصر","حسين علي","الشهيد أحمد علي","2022/2021","إلي مدرسة",null,null,"2021-10-01"]
[82,466208655,"سعد82",30906022800225,"2009-06-02",3,12,12,"أنثي",21003092701,"الخامس","الجيزة‏","شرق مدينة نصر","حسين علي","الشهيد أحمد علي","2022/2021","إلي مدرسة",null,null,"2021-10-01"]
[83,466208655,"سعد83",30906022800225,"2009-06-02",3,12,12,"أنثي",1028852010,"الخامس","القاهرة‏","شرق مدينة نصر","حسين علي","الشهيد أحمد علي","2022/2021","إلي مدرسة",null,null,"2021-10-01"]
[84,466208655,"سعد84",30906022800225,"2009-06-02",3,12,12,"أنثي",1037799048,"الخامس","القاهرة‏","شرق مدينة نصر","حسين علي","الشهيد أحمد علي","2022/2021","إلي مدرسة",null,null,"2021-10-01"]
[85,466208655,"سعد85",30906022800225,"2009-06-02",3,12,12,"أنثي",1028490460,"الخامس","القاهرة‏","شرق مدينة نصر","حسين علي","الشهيد أحمد علي","2022/2021","إلي مدرسة",null,null,"2021-10-01"]
[86,466208655,"سعد86",30906022800225,"2009-06-02",3,12,12,"أنثي",1012042101,"السادس","القاهرة‏","شرق مدينة نصر","حسين علي","الشهيد أحمد علي","2022/2021","إلي مدرسة",null,null,"2021-10-01"]
[87,466208655,"سعد87",30906022800225,"2009-06-02",3,12,12,"أنثي",1029836233,"السادس","القاهرة‏","شرق مدينة نصر","حسين علي","الشهيد أحمد علي","2022/2021","إلي مدرسة",null,null,"2021-10-01"]
[88,466208655,"سعد88",30906022800225,"2009-06-02",3,12,12,"أنثي",1027264162,"السادس","القاهرة‏","شرق مدينة نصر","حسين علي","الشهيد أحمد علي","2022/2021","إلي مدرسة",null,null,"2021-10-01"]
[null,null,null,null,null,null,null,null,null,null,null,null,null,null,null,null,null,null,null,"2021-10-01"]
[null,null,null,null,null,null,null,null,null,null,null,null,null,null,null,null,null,null,null,"2021-10-01"]
[null,null,null,null,null,null,null,null,null,null,null,null,null,null,null,null,null,null,null,"2021-10-01"]
[null,null,null,null,null,null,null,null,null,null,null,null,null,null,null,null,null,null,null,"2021-10-01"]
[null,null,null,null,null,null,null,null,null,null,null,null,null,null,null,null,null,null,null,"2021-10-01"]
[null,null,null,null,null,null,null,null,null,null,null,null,null,null,null,null,null,null,null,"2021-10-01"]
[null,null,null,null,null,null,null,null,null,null,null,null,null,null,null,null,null,null,null,"2021-10-01"]
[null,null,null,null,null,null,null,null,null,null,null,null,null,null,null,null,null,null,null,"2021-10-01"]
[null,null,null,null,null,null,null,null,null,null,null,null,null,null,null,null,null,null,null,"2021-10-01"]
[null,null,null,null,null,null,null,null,null,null,null,null,null,null,null,null,null,null,null,"2021-10-01"]
[null,null,null,null,null,null,null,null,null,null,null,null,null,null,null,null,null,null,null,"2021-10-01"]
[null,null,null,null,null,null,null,null,null,null,null,null,null,null,null,null,null,null,null,"2021-10-01"]
[null,null,null,null,null,null,null,null,null,null,null,null,null,null,null,null,null,null,null,"2021-10-01"]
[null,null,null,null,null,null,null,null,null,null,null,null,null,null,null,null,null,null,null,"2021-10-01"]
[null,null,null,null,null,null,null,null,null,null,null,null,null,null,null,null,null,null,null,"2021-10-01"]
[null,null,null,null,null,null,null,null,null,null,null,null,null,null,null,null,null,null,null,"2021-10-01"]
[null,null,null,null,null,null,null,null,null,null,null,null,null,null,null,null,null,null,null,"2021-10-01"]
[null,null,null,null,null,null,null,null,null,null,null,null,null,null,null,null,null,null,null,"2021-10-01"]
[null,null,null,null,null,null,null,null,null,null,null,null,null,null,null,null,null,null,null,"2021-10-01"]
[null,null,null,null,null,null,null,null,null,null,null,null,null,null,null,null,null,null,null,"2021-10-01"]
[null,null,null,null,null,null,null,null,null,null,null,null,null,null,null,null,null,null,null,"2021-10-01"]
[null,null,null,null,null,null,null,null,null,null,null,null,null,null,null,null,null,null,null,"2021-10-01"]
[null,null,null,null,null,null,null,null,null,null,null,null,null,null,null,null,null,null,null,"2021-10-01"]
[null,null,null,null,null,null,null,null,null,null,null,null,null,null,null,null,null,null,null,"2021-10-01"]
[null,null,null,null,null,null,null,null,null,null,null,null,null,null,null,null,null,null,null,"2021-10-01"]
[null,null,null,null,null,null,null,null,null,null,null,null,null,null,null,null,null,null,null,"2021-10-01"]
[null,null,null,null,null,null,null,null,null,null,null,null,null,null,null,null,null,null,null,"2021-10-01"]
[null,null,null,null,null,null,null,null,null,null,null,null,null,null,null,null,null,null,null,"2021-10-01"]
[null,null,null,null,null,null,null,null,null,null,null,null,null,null,null,null,null,null,null,"2021-10-01"]
[null,null,null,null,null,null,null,null,null,null,null,null,null,null,null,null,null,null,null,"2021-10-01"]
[null,null,null,null,null,null,null,null,null,null,null,null,null,null,null,null,null,null,null,"2021-10-01"]
[null,null,null,null,null,null,null,null,null,null,null,null,null,null,null,null,null,null,null,"2021-10-01"]
[null,null,null,null,null,null,null,null,null,null,null,null,null,null,null,null,null,null,null,"2021-10-01"]
[null,null,null,null,null,null,null,null,null,null,null,null,null,null,null,null,null,null,null,"2021-10-01"]
[null,null,null,null,null,null,null,null,null,null,null,null,null,null,null,null,null,null,null,"2021-10-01"]
[null,null,null,null,null,null,null,null,null,null,null,null,null,null,null,null,null,null,null,"2021-10-01"]
[null,null,null,null,null,null,null,null,null,null,null,null,null,null,null,null,null,null,null,"2021-10-01"]
[null,null,null,null,null,null,null,null,null,null,null,null,null,null,null,null,null,null,null,"2021-10-01"]
[null,null,null,null,null,null,null,null,null,null,null,null,null,null,null,null,null,null,null,"2021-10-01"]
[null,null,null,null,null,null,null,null,null,null,null,null,null,null,null,null,null,null,null,"2021-10-01"]
[null,null,null,null,null,null,null,null,null,null,null,null,null,null,null,null,null,null,null,"2021-10-01"]
[null,null,null,null,null,null,null,null,null,null,null,null,null,null,null,null,null,null,null,"2021-10-01"]
[null,null,null,null,null,null,null,null,null,null,null,null,null,null,null,null,null,null,null,"2021-10-01"]
[null,null,null,null,null,null,null,null,null,null,null,null,null,null,null,null,null,null,null,"2021-10-01"]
[null,null,null,null,null,null,null,null,null,null,null,null,null,null,null,null,null,null,null,"2021-10-01"]
[null,null,null,null,null,null,null,null,null,null,null,null,null,null,null,null,null,null,null,"2021-10-01"]
[null,null,null,null,null,null,null,null,null,null,null,null,null,null,null,null,null,null,null,"2021-10-01"]
[null,null,null,null,null,null,null,null,null,null,null,null,null,null,null,null,null,null,null,"2021-10-01"]
[null,null,null,null,null,null,null,null,null,null,null,null,null,null,null,null,null,null,null,"2021-10-01"]
[null,null,null,null,null,null,null,null,null,null,null,null,null,null,null,null,null,null,null,"2021-10-01"]
[null,null,null,null,null,null,null,null,null,null,null,null,null,null,null,null,null,null,null,"2021-10-01"]
[null,null,null,null,null,null,null,null,null,null,null,null,null,null,null,null,null,null,null,"2021-10-01"]
[null,null,null,null,null,null,null,null,null,null,null,null,null,null,null,null,null,null,null,"2021-10-01"]
[null,null,null,null,null,null,null,null,null,null,null,null,null,null,null,null,null,null,null,"2021-10-01"]
[null,null,null,null,null,null,null,null,null,null,null,null,null,null,null,null,null,null,null,"2021-10-01"]
[null,null,null,null,null,null,null,null,null,null,null,null,null,null,null,null,null,null,null,"2021-10-01"]
[null,null,null,null,null,null,null,null,null,null,null,null,null,null,null,null,null,null,null,"2021-10-01"]
[null,null,null,null,null,null,null,null,null,null,null,null,null,null,null,null,null,null,null,"2021-10-01"]
[null,null,null,null,null,null,null,null,null,null,null,null,null,null,null,null,null,null,null,"2021-10-01"]
[null,null,null,null,null,null,null,null,null,null,null,null,null,null,null,null,null,null,null,"2021-10-01"]
[null,null,null,null,null,null,null,null,null,null,null,null,null,null,null,null,null,null,null,"2021-10-01"]
[null,null,null,null,null,null,null,null,null,null,null,null,null,null,null,null,null,null,null,"2021-10-01"]
[null,null,null,null,null,null,null,null,null,null,null,null,null,null,null,null,null,null,null,"2021-10-01"]
[null,null,null,null,null,null,null,null,null,null,null,null,null,null,null,null,null,null,null,"2021-10-01"]
[null,null,null,null,null,null,null,null,null,null,null,null,null,null,null,null,null,null,null,"2021-10-01"]
[null,null,null,null,null,null,null,null,null,null,null,null,null,null,null,null,null,null,null,"2021-10-01"]
[null,null,null,null,null,null,null,null,null,null,null,null,null,null,null,null,null,null,null,"2021-10-01"]
[null,null,null,null,null,null,null,null,null,null,null,null,null,null,null,null,null,null,null,"2021-10-01"]
[null,null,null,null,null,null,null,null,null,null,null,null,null,null,null,null,null,null,null,"2021-10-01"]
[null,null,null,null,null,null,null,null,null,null,null,null,null,null,null,null,null,null,null,"2021-10-01"]
[null,null,null,null,null,null,null,null,null,null,null,null,null,null,null,null,null,null,null,"2021-10-01"]
[null,null,null,null,null,null,null,null,null,null,null,null,null,null,null,null,null,null,null,"2021-10-01"]
[null,null,null,null,null,null,null,null,null,null,null,null,null,null,null,null,null,null,null,"2021-10-01"]
[null,null,null,null,null,null,null,null,null,null,null,null,null,null,null,null,null,null,null,"2021-10-01"]
[null,null,null,null,null,null,null,null,null,null,null,null,null,null,null,null,null,null,null,"2021-10-01"]
[null,null,null,null,null,null,null,null,null,null,null,null,null,null,null,null,null,null,null,"2021-10-01"]
[null,null,null,null,null,null,null,null,null,null,null,null,null,null,null,null,null,null,null,"2021-10-01"]
[null,null,null,null,null,null,null,null,null,null,null,null,null,null,null,null,null,null,null,"2021-10-01"]
[null,null,null,null,null,null,null,null,null,null,null,null,null,null,null,null,null,null,null,"2021-10-01"]
[null,null,null,null,null,null,null,null,null,null,null,null,null,null,null,null,null,null,null,"2021-10-01"]
[null,null,null,null,null,null,null,null,null,null,null,null,null,null,null,null,null,null,null,"2021-10-01"]
[null,null,null,null,null,null,null,null,null,null,null,null,null,null,null,null,null,null,null,"2021-10-01"]
[null,null,null,null,null,null,null,null,null,null,null,null,null,null,null,null,null,null,null,"2021-10-01"]
[null,null,null,null,null,null,null,null,null,null,null,null,null,null,null,null,null,null,null,"2021-10-01"]
[null,null,null,null,null,null,null,null,null,null,null,null,null,null,null,null,null,null,null,"2021-10-01"]
[null,null,null,null,null,null,null,null,null,null,null,null,null,null,null,null,null,null,null,"2021-10-01"]
[null,null,null,null,null,null,null,null,null,null,null,null,null,null,null,null,null,null,null,"2021-10-01"]
[null,null,null,null,null,null,null,null,null,null,null,null,null,null,null,null,null,null,null,"2021-10-01"]
[null,null,null,null,null,null,null,null,null,null,null,null,null,null,null,null,null,null,null,"2021-10-01"]
[null,null,null,null,null,null,null,null,null,null,null,null,null,null,null,null,null,null,null,"2021-10-01"]
[null,null,null,null,null,null,null,null,null,null,null,null,null,null,null,null,null,null,null,"2021-10-01"]
[null,null,null,null,null,null,null,null,null,null,null,null,null,null,null,null,null,null,null,"2021-10-01"]
[null,null,null,null,null,null,null,null,null,null,null,null,null,null,null,null,null,null,null,"2021-10-01"]
[null,null,null,null,null,null,null,null,null,null,null,null,null,null,null,null,null,null,null,"2021-10-01"]
[null,null,null,null,null,null,null,null,null,null,null,null,null,null,null,null,null,null,null,"2021-10-01"]
[null,null,null,null,null,null,null,null,null,null,null,null,null,null,null,null,null,null,null,"2021-10-01"]
[null,null,null,null,null,null,null,null,null,null,null,null,null,null,null,null,null,null,null,"2021-10-01"]
[null,null,null,null,null,null,null,null,null,null,null,null,null,null,null,null,null,null,null,"2021-10-01"]
[null,null,null,null,null,null,null,null,null,null,null,null,null,null,null,null,null,null,null,"2021-10-01"]
[null,null,null,null,null,null,null,null,null,null,null,null,null,null,null,null,null,null,null,"2021-10-01"]
[null,null,null,null,null,null,null,null,null,null,null,null,null,null,null,null,null,null,null,"2021-10-01"]
[null,null,null,null,null,null,null,null,null,null,null,null,null,null,null,null,null,null,null,"2021-10-01"]
[null,null,null,null,null,null,null,null,null,null,null,null,null,null,null,null,null,null,null,"2021-10-01"]
[null,null,null,null,null,null,null,null,null,null,null,null,null,null,null,null,null,null,null,"2021-10-01"]
[null,null,null,null,null,null,null,null,null,null,null,null,null,null,null,null,null,null,null,"2021-10-01"]
[null,null,null,null,null,null,null,null,null,null,null,null,null,null,null,null,null,null,null,"2021-10-01"]
[null,null,null,null,null,null,null,null,null,null,null,null,null,null,null,null,null,null,null,"2021-10-01"]
[null,null,null,null,null,null,null,null,null,null,null,null,null,null,null,null,null,null,null,"2021-10-01"]
[null,null,null,null,null,null,null,null,null,null,null,null,null,null,null,null,null,null,null,"2021-10-01"]
[null,null,null,null,null,null,null,null,null,null,null,null,null,null,null,null,null,null,null,"2021-10-01"]
[null,null,null,null,null,null,null,null,null,null,null,null,null,null,null,null,null,null,null,"2021-10-01"]
[null,null,null,null,null,null,null,null,null,null,null,null,null,null,null,null,null,null,null,"2021-10-01"]
[null,null,null,null,null,null,null,null,null,null,null,null,null,null,null,null,null,null,null,"2021-10-01"]
[null,null,null,null,null,null,null,null,null,null,null,null,null,null,null,null,null,null,null,"2021-10-01"]
[null,null,null,null,null,null,null,null,null,null,null,null,null,null,null,null,null,null,null,"2021-10-01"]
[null,null,null,null,null,null,null,null,null,null,null,null,null,null,null,null,null,null,null,"2021-10-01"]
[null,null,null,null,null,null,null,null,null,null,null,null,null,null,null,null,null,null,null,"2021-10-01"]
[null,null,null,null,null,null,null,null,null,null,null,null,null,null,null,null,null,null,null,"2021-10-01"]
[null,null,null,null,null,null,null,null,null,null,null,null,null,null,null,null,null,null,null,"2021-10-01"]
[null,null,null,null,null,null,null,null,null,null,null,null,null,null,null,null,null,null,null,"2021-10-01"]
[null,null,null,null,null,null,null,null,null,null,null,null,null,null,null,null,null,null,null,"2021-10-01"]
[null,null,null,null,null,null,null,null,null,null,null,null,null,null,null,null,null,null,null,"2021-10-01"]
[null,null,null,null,null,null,null,null,null,null,null,null,null,null,null,null,null,null,null,"2021-10-01"]
[null,null,null,null,null,null,null,null,null,null,null,null,null,null,null,null,null,null,null,"2021-10-01"]
[null,null,null,null,null,null,null,null,null,null,null,null,null,null,null,null,null,null,null,"2021-10-01"]
[null,null,null,null,null,null,null,null,null,null,null,null,null,null,null,null,null,null,null,"2021-10-01"]
[null,null,null,null,null,null,null,null,null,null,null,null,null,null,null,null,null,null,null,"2021-10-01"]
[null,null,null,null,null,null,null,null,null,null,null,null,null,null,null,null,null,null,null,"2021-10-01"]
[null,null,null,null,null,null,null,null,null,null,null,null,null,null,null,null,null,null,null,"2021-10-01"]
[null,null,null,null,null,null,null,null,null,null,null,null,null,null,null,null,null,null,null,"2021-10-01"]
[null,null,null,null,null,null,null,null,null,null,null,null,null,null,null,null,null,null,null,"2021-10-01"]
[null,null,null,null,null,null,null,null,null,null,null,null,null,null,null,null,null,null,null,"2021-10-01"]
[null,null,null,null,null,null,null,null,null,null,null,null,null,null,null,null,null,null,null,"2021-10-01"]
[null,null,null,null,null,null,null,null,null,null,null,null,null,null,null,null,null,null,null,"2021-10-01"]
[null,null,null,null,null,null,null,null,null,null,null,null,null,null,null,null,null,null,null,"2021-10-01"]
[null,null,null,null,null,null,null,null,null,null,null,null,null,null,null,null,null,null,null,"2021-10-01"]
[null,null,null,null,null,null,null,null,null,null,null,null,null,null,null,null,null,null,null,"2021-10-01"]
[null,null,null,null,null,null,null,null,null,null,null,null,null,null,null,null,null,null,null,"2021-10-01"]
[null,null,null,null,null,null,null,null,null,null,null,null,null,null,null,null,null,null,null,"2021-10-01"]
[null,null,null,null,null,null,null,null,null,null,null,null,null,null,null,null,null,null,null,"2021-10-01"]
[null,null,null,null,null,null,null,null,null,null,null,null,null,null,null,null,null,null,null,"2021-10-01"]
[null,null,null,null,null,null,null,null,null,null,null,null,null,null,null,null,null,null,null,"2021-10-01"]
[null,null,null,null,null,null,null,null,null,null,null,null,null,null,null,null,null,null,null,"2021-10-01"]
[null,null,null,null,null,null,null,null,null,null,null,null,null,null,null,null,null,null,null,"2021-10-01"]
[null,null,null,null,null,null,null,null,null,null,null,null,null,null,null,null,null,null,null,"2021-10-01"]
[null,null,null,null,null,null,null,null,null,null,null,null,null,null,null,null,null,null,null,"2021-10-01"]
[null,null,null,null,null,null,null,null,null,null,null,null,null,null,null,null,null,null,null,"2021-10-01"]
[null,null,null,null,null,null,null,null,null,null,null,null,null,null,null,null,null,null,null,"2021-10-01"]
[null,null,null,null,null,null,null,null,null,null,null,null,null,null,null,null,null,null,null,"2021-10-01"]
[null,null,null,null,null,null,null,null,null,null,null,null,null,null,null,null,null,null,null,"2021-10-01"]
[null,null,null,null,null,null,null,null,null,null,null,null,null,null,null,null,null,null,null,"2021-10-01"]
[null,null,null,null,null,null,null,null,null,null,null,null,null,null,null,null,null,null,null,"2021-10-01"]
[null,null,null,null,null,null,null,null,null,null,null,null,null,null,null,null,null,null,null,"2021-10-01"]
[null,null,null,null,null,null,null,null,null,null,null,null,null,null,null,null,null,null,null,"2021-10-01"]
[null,null,null,null,null,null,null,null,null,null,null,null,null,null,null,null,null,null,null,"2021-10-01"]
[null,null,null,null,null,null,null,null,null,null,null,null,null,null,null,null,null,null,null,"2021-10-01"]
[null,null,null,null,null,null,null,null,null,null,null,null,null,null,null,null,null,null,null,"2021-10-01"]
[null,null,null,null,null,null,null,null,null,null,null,null,null,null,null,null,null,null,null,"2021-10-01"]
[null,null,null,null,null,null,null,null,null,null,null,null,null,null,null,null,null,null,null,"2021-10-01"]
[null,null,null,null,null,null,null,null,null,null,null,null,null,null,null,null,null,null,null,"2021-10-01"]
[null,null,null,null,null,null,null,null,null,null,null,null,null,null,null,null,null,null,null,"2021-10-01"]
[null,null,null,null,null,null,null,null,null,null,null,null,null,null,null,null,null,null,null,"2021-10-01"]
[null,null,null,null,null,null,null,null,null,null,null,null,null,null,null,null,null,null,null,"2021-10-01"]
[null,null,null,null,null,null,null,null,null,null,null,null,null,null,null,null,null,null,null,"2021-10-01"]
[null,null,null,null,null,null,null,null,null,null,null,null,null,null,null,null,null,null,null,"2021-10-01"]
[null,null,null,null,null,null,null,null,null,null,null,null,null,null,null,null,null,null,null,"2021-10-01"]
[null,null,null,null,null,null,null,null,null,null,null,null,null,null,null,null,null,null,null,"2021-10-01"]
[null,null,null,null,null,null,null,null,null,null,null,null,null,null,null,null,null,null,null,"2021-10-01"]
[null,null,null,null,null,null,null,null,null,null,null,null,null,null,null,null,null,null,null,"2021-10-01"]
[null,null,null,null,null,null,null,null,null,null,null,null,null,null,null,null,null,null,null,"2021-10-01"]
[null,null,null,null,null,null,null,null,null,null,null,null,null,null,null,null,null,null,null,"2021-10-01"]
[null,null,null,null,null,null,null,null,null,null,null,null,null,null,null,null,null,null,null,"2021-10-01"]
[null,null,null,null,null,null,null,null,null,null,null,null,null,null,null,null,null,null,null,"2021-10-01"]
[null,null,null,null,null,null,null,null,null,null,null,null,null,null,null,null,null,null,null,"2021-10-01"]
[null,null,null,null,null,null,null,null,null,null,null,null,null,null,null,null,null,null,null,"2021-10-01"]
[null,null,null,null,null,null,null,null,null,null,null,null,null,null,null,null,null,null,null,"2021-10-01"]
[null,null,null,null,null,null,null,null,null,null,null,null,null,null,null,null,null,null,null,"2021-10-01"]
[null,null,null,null,null,null,null,null,null,null,null,null,null,null,null,null,null,null,null,"2021-10-01"]
[null,null,null,null,null,null,null,null,null,null,null,null,null,null,null,null,null,null,null,"2021-10-01"]
[null,null,null,null,null,null,null,null,null,null,null,null,null,null,null,null,null,null,null,"2021-10-01"]
[null,null,null,null,null,null,null,null,null,null,null,null,null,null,null,null,null,null,null,"2021-10-01"]
[null,null,null,null,null,null,null,null,null,null,null,null,null,null,null,null,null,null,null,"2021-10-01"]
[null,null,null,null,null,null,null,null,null,null,null,null,null,null,null,null,null,null,null,"2021-10-01"]
[null,null,null,null,null,null,null,null,null,null,null,null,null,null,null,null,null,null,null,"2021-10-01"]
[null,null,null,null,null,null,null,null,null,null,null,null,null,null,null,null,null,null,null,"2021-10-01"]
[null,null,null,null,null,null,null,null,null,null,null,null,null,null,null,null,null,null,null,"2021-10-01"]
[null,null,null,null,null,null,null,null,null,null,null,null,null,null,null,null,null,null,null,"2021-10-01"]
[null,null,null,null,null,null,null,null,null,null,null,null,null,null,null,null,null,null,null,"2021-10-01"]
[null,null,null,null,null,null,null,null,null,null,null,null,null,null,null,null,null,null,null,"2021-10-01"]
[null,null,null,null,null,null,null,null,null,null,null,null,null,null,null,null,null,null,null,"2021-10-01"]
[null,null,null,null,null,null,null,null,null,null,null,null,null,null,null,null,null,null,null,"2021-10-01"]
[null,null,null,null,null,null,null,null,null,null,null,null,null,null,null,null,null,null,null,"2021-10-01"]
[null,null,null,null,null,null,null,null,null,null,null,null,null,null,null,null,null,null,null,"2021-10-01"]
[null,null,null,null,null,null,null,null,null,null,null,null,null,null,null,null,null,null,null,"2021-10-01"]
[null,null,null,null,null,null,null,null,null,null,null,null,null,null,null,null,null,null,null,"2021-10-01"]
[null,null,null,null,null,null,null,null,null,null,null,null,null,null,null,null,null,null,null,"2021-10-01"]
[null,null,null,null,null,null,null,null,null,null,null,null,null,null,null,null,null,null,null,"2021-10-01"]
[null,null,null,null,null,null,null,null,null,null,null,null,null,null,null,null,null,null,null,"2021-10-01"]
[null,null,null,null,null,null,null,null,null,null,null,null,null,null,null,null,null,null,null,"2021-10-01"]
[null,null,null,null,null,null,null,null,null,null,null,null,null,null,null,null,null,null,null,"2021-10-01"]
[null,null,null,null,null,null,null,null,null,null,null,null,null,null,null,null,null,null,null,"2021-10-01"]
[null,null,null,null,null,null,null,null,null,null,null,null,null,null,null,null,null,null,null,"2021-10-01"]
[null,null,null,null,null,null,null,null,null,null,null,null,null,null,null,null,null,null,null,"2021-10-01"]
[null,null,null,null,null,null,null,null,null,null,null,null,null,null,null,null,null,null,null,"2021-10-01"]
[null,null,null,null,null,null,null,null,null,null,null,null,null,null,null,null,null,null,null,"2021-10-01"]
[null,null,null,null,null,null,null,null,null,null,null,null,null,null,null,null,null,null,null,"2021-10-01"]
[null,null,null,null,null,null,null,null,null,null,null,null,null,null,null,null,null,null,null,"2021-10-01"]
[null,null,null,null,null,null,null,null,null,null,null,null,null,null,null,null,null,null,null,"2021-10-01"]
[null,null,null,null,null,null,null,null,null,null,null,null,null,null,null,null,null,null,null,"2021-10-01"]
[null,null,null,null,null,null,null,null,null,null,null,null,null,null,null,null,null,null,null,"2021-10-01"]
[null,null,null,null,null,null,null,null,null,null,null,null,null,null,null,null,null,null,null,"2021-10-01"]
[null,null,null,null,null,null,null,null,null,null,null,null,null,null,null,null,null,null,null,"2021-10-01"]
[null,null,null,null,null,null,null,null,null,null,null,null,null,null,null,null,null,null,null,"2021-10-01"]
[null,null,null,null,null,null,null,null,null,null,null,null,null,null,null,null,null,null,null,"2021-10-01"]
[null,null,null,null,null,null,null,null,null,null,null,null,null,null,null,null,null,null,null,"2021-10-01"]
[null,null,null,null,null,null,null,null,null,null,null,null,null,null,null,null,null,null,null,"2021-10-01"]
[null,null,null,null,null,null,null,null,null,null,null,null,null,null,null,null,null,null,null,"2021-10-01"]
[null,null,null,null,null,null,null,null,null,null,null,null,null,null,null,null,null,null,null,"2021-10-01"]
[null,null,null,null,null,null,null,null,null,null,null,null,null,null,null,null,null,null,null,"2021-10-01"]
[null,null,null,null,null,null,null,null,null,null,null,null,null,null,null,null,null,null,null,"2021-10-01"]
[null,null,null,null,null,null,null,null,null,null,null,null,null,null,null,null,null,null,null,"2021-10-01"]
[null,null,null,null,null,null,null,null,null,null,null,null,null,null,null,null,null,null,null,"2021-10-01"]
[null,null,null,null,null,null,null,null,null,null,null,null,null,null,null,null,null,null,null,"2021-10-01"]
[null,null,null,null,null,null,null,null,null,null,null,null,null,null,null,null,null,null,null,"2021-10-01"]
[null,null,null,null,null,null,null,null,null,null,null,null,null,null,null,null,null,null,null,"2021-10-01"]
[null,null,null,null,null,null,null,null,null,null,null,null,null,null,null,null,null,null,null,"2021-10-01"]
[null,null,null,null,null,null,null,null,null,null,null,null,null,null,null,null,null,null,null,"2021-10-01"]
[null,null,null,null,null,null,null,null,null,null,null,null,null,null,null,null,null,null,null,"2021-10-01"]
[null,null,null,null,null,null,null,null,null,null,null,null,null,null,null,null,null,null,null,"2021-10-01"]
[null,null,null,null,null,null,null,null,null,null,null,null,null,null,null,null,null,null,null,"2021-10-01"]
[null,null,null,null,null,null,null,null,null,null,null,null,null,null,null,null,null,null,null,"2021-10-01"]
[null,null,null,null,null,null,null,null,null,null,null,null,null,null,null,null,null,null,null,"2021-10-01"]
[null,null,null,null,null,null,null,null,null,null,null,null,null,null,null,null,null,null,null,"2021-10-01"]
[null,null,null,null,null,null,null,null,null,null,null,null,null,null,null,null,null,null,null,"2021-10-01"]
[null,null,null,null,null,null,null,null,null,null,null,null,null,null,null,null,null,null,null,"2021-10-01"]
[null,null,null,null,null,null,null,null,null,null,null,null,null,null,null,null,null,null,null,"2021-10-01"]
[null,null,null,null,null,null,null,null,null,null,null,null,null,null,null,null,null,null,null,"2021-10-01"]
[null,null,null,null,null,null,null,null,null,null,null,null,null,null,null,null,null,null,null,"2021-10-01"]
[null,null,null,null,null,null,null,null,null,null,null,null,null,null,null,null,null,null,null,"2021-10-01"]
[null,null,null,null,null,null,null,null,null,null,null,null,null,null,null,null,null,null,null,"2021-10-01"]
[null,null,null,null,null,null,null,null,null,null,null,null,null,null,null,null,null,null,null,"2021-10-01"]
[null,null,null,null,null,null,null,null,null,null,null,null,null,null,null,null,null,null,null,"2021-10-01"]
[null,null,null,null,null,null,null,null,null,null,null,null,null,null,null,null,null,null,null,"2021-10-01"]
[null,null,null,null,null,null,null,null,null,null,null,null,null,null,null,null,null,null,null,"2021-10-01"]

{"sheet":"moholon","index":1,"n_rows":10,"n_cols":17,"rows_kept":10,"cut":false,"hidden":false,"merged":[[5,7,5,8]]}
[]
[]
[]
[]
[]
["                                                                              إحصاء بعدد التلاميذ المحولين ",null,null,null,null,null,null,"من مدرسة",null,"احمد عرابي الابتدائية الرسمية المشتركة"]
[]
[]
["م","كود الطالب","اسم الطالب","الرقم القومي","تاريخ الميلاد","النوع","رقم الطلب","الصف","المديرية","الإدارة","من مدرسة","إلي مدرسة","التحويل",null,null,null,"من مدرسة"]
[null,null,null,null,null,null,null,null,null,null,null,null,null,null,null,null,"إلي مدرسة"]